Cogmind - Beta 10 @@@ ROGUE MODE // 2020.09.17 @ 12:28:18 Player: Wyrd Darcnyzz Result: Destroyed by G-34 Mercenary with Small Laser Performance ------------- Evolutions (0) 0 Regions Visited (1) 200 Robots Destroyed (16) 80 Value Destroyed (345) 345 Prototype IDs (2) 40 Alien Tech Used (0) 0 Bonus (0) 0 TOTAL SCORE: 665 Bonus ------- None Cogmind --------- Core Integrity 0/250 Matter 300/300 Energy 100/100 System Corruption 0% Temperature Cool (6) Movement Treading (160) Location -10/Materials Parts ------- > --- POWER (1) -------- (None) > --- PROPULSION (2) --- Light Treads > --- UTILITY (2) ------ Medium Storage Unit Targeting Computer > --- WEAPON (2) ------- (None) > --- INVENTORY (8) ---- Ion Engine Light Treads Hardened Light Armor Plating Peak State ------------ > --- POWER ------------ Ion Engine > --- PROPULSION ------- Light Treads Light Treads > --- UTILITY ---------- Medium Storage Unit Targeting Computer > --- WEAPON ----------- Beam Rifle Beam Rifle > --- INVENTORY -------- Ion Engine EM Pulse Gun Medium Laser [Rating: 9] Favorites ----------- Power Ion Engine Engine Ion Engine Propulsion Light Treads Treads Light Treads Utility Targeting Computer Storage Medium Storage Unit Processor Targeting Computer Weapon Beam Rifle Energy Gun Beam Rifle Build | -11 -10 ------- Run | Scr Mat Slots Evolved . | . . Power . | . . Propulsion . | . . Utility . | . . Weapon . | . . Parts Attached 13 | 5 8 Power 1 | 1 . Engine 1 | 1 . Core . | . . Reactor . | . . Propulsion 2 | 2 . Treads 2 | 2 . Leg . | . . Wheel . | . . Hover . | . . Flight . | . . Utility 3 | 1 2 Device . | . . Storage 2 | 1 1 Processor 1 | . 1 Hackware . | . . Protection . | . . Artifact . | . . Weapon 7 | 1 6 Energy Gun 7 | 1 6 Energy Cannon . | . . Ballistic Gun . | . . Ballistic Cannon . | . . Launcher . | . . Special Weapon . | . . Impact Weapon . | . . Slashing Weapon . | . . Piercing Weapon . | . . Special Melee Weapon . | . . Unidentified Prototypes . | . . Parts Lost 5 | . 5 Power 1 | . 1 Propulsion . | . . Utility . | . . Weapon 4 | . 4 Highest Loss Streak 5 | . 5 Average Slot Usage (%) 90 | . 90 Engine 12 | . 12 Treads 25 | . 25 Storage 14 | . 14 Processor 11 | . 11 Energy Gun 25 | . 25 Naked Turns . | . . Heaviest Build 19 | 11 19 Greatest Support 40 | 40 40 Greatest Overweight (x) . | . . Average Overweight (x) . | . . Largest Inventory Capacity 8 | 6 8 Average Capacity 7 | 5 7 Most Carried 5 | . 5 Average Carried 2 | . 2 Final Capacity 8 | 6 8 Final Carried 3 | . 3 Class Distribution -------------------- 100% | Mutant Dominant Class ---------------- Mutant | -10/Materials Resources | -11 -10 ----------- Run | Scr Mat Matter Collected 310 | 242 68 Remotely . | . . Salvage Created 508 | . 508 Parts 31 | . 31 Haulers Intercepted 1 | . 1 Recyclers Shooed . | . . Parts Field Recycled . | . . Retrieved Matter . | . . Parts Self-Destructed . | . . Prevented . | . . Kills | -11 -10 ------- Run | Scr Mat Combat Hostiles Destroyed 9 | . 9 Guns 9 | . 9 Classes Destroyed 7 | . 7 Worker 1 | . 1 Builder 1 | . 1 Hauler 1 | . 1 Operator 1 | . 1 Watcher 3 | . 3 Swarmer 3 | . 3 Grunt 6 | . 6 Best Kill Streak 4 | . 4 Combat Bots Only 3 | . 3 Max Kills in Single Turn 1 | . 1 Gunslinging . | . . Exploded . | . . Melee . | . . Uniques/NPCs Destroyed . | . . Combat | -11 -10 -------- Run | Scr Mat Damage Taken 857 | . 857 Core 254 | . 254 Absorbed by Shields . | . . Core Remaining (%) 100 | 100 . Volleys Fired 42 | . 42 Largest 2 | . 2 Hottest 112 | . 112 Shots Fired 75 | . 75 Gun 75 | . 75 Cannon . | . . Launcher . | . . Special . | . . Kinetic . | . . Thermal 57 | . 57 Explosive . | . . Electromagnetic 18 | . 18 Robot Hit Streak 13 | . 13 Robot Miss Streak 3 | . 3 Penetration Max . | . . Secondary Targets 1 | . 1 Max Gunslinging Chain 1 | . 1 Shots Hit Robots 51 | . 51 Core Hits 27 | . 27 Critical Hits . | . . Critical Kills . | . . Critical Parts Destroyed . | . . Melee Attacks . | . . Impact . | . . Slashing . | . . Piercing . | . . Sneak Attacks . | . . Combat Hostiles . | . . Follow-up Attacks . | . . Damage Inflicted 732 | . 732 Guns 732 | . 732 Cannons . | . . Explosions . | . . Melee . | . . Ramming . | . . Kinetic . | . . Thermal 513 | . 513 Explosive . | . . Electromagnetic 219 | . 219 Impact . | . . Slashing . | . . Piercing . | . . Highest Corruption . | . . Average Corruption . | . . Corruption Purged . | . . Overload Shots . | . . Overflow Damage . | . . Projectiles . | . . Explosions . | . . Melee . | . . Knockbacks . | . . Impact . | . . Kinetic . | . . Secondary . | . . Self-Inflicted Damage . | . . Shots . | . . Rammed . | . . Targets Rammed . | . . Kicked . | . . Crushed . | . . Highest Temperature 483 | . 483 Average Temperature 183 | . 183 Received Heat Transfer 441 | . 441 Effects 4 | . 4 Shutdowns 1 | . 1 Energy Bleed 1 | . 1 Interference 1 | . 1 Short Circuit 1 | . 1 Siege Activations . | . . Robots Corrupted . | . . Combat Hostiles . | . . Parts Fried . | . . Impact Corruptions . | . . Robots Melted . | . . Combat Hostiles . | . . Parts Melted 3 | . 3 Heat Transferred 1369 | . 1369 Parts Sabotaged . | . . Parts Stolen . | . . Parts Stripped . | . . Power Chain Reactions . | . . Missiles Intercepted . | . . Alert | -11 -10 ------- Run | Scr Mat Peak Influence 162 | . 162 Initial . | . . Average 54 | . 58 Maximum Alert Level . | . . Low Security (%) 100 | 100 100 Level 1 . | . . Level 2 . | . . Level 3 . | . . Level 4 . | . . Level 5 . | . . High Security . | . . Max Security . | . . Squads Dispatched 1 | . 1 Investigation . | . . Extermination . | . . Reinforcement 1 | . 1 Assault . | . . Garrison . | . . Intercept . | . . Construction Impeded . | . . Haulers Reinforced . | . . Stealth | -11 -10 --------- Run | Scr Mat Distress Signals 1 | . 1 Communications Jammed . | . . Distress Signals . | . . Times Spotted 15 | . 15 Peak Tracking Total 3 | . 3 Tactical Retreats . | . . Traps | -11 -10 ------- Run | Scr Mat Traps Triggered 1 | . 1 Indirectly . | . . Trap Hack Attempts . | . . Triggered . | . . Disarmed . | . . Reprogrammed . | . . Reused . | . . Traps Extracted . | . . Installed . | . . Triggered . | . . Machines | -11 -10 ---------- Run | Scr Mat Machines Disabled . | . . Max in Single Turn . | . . Machines Sabotaged . | . . Garrisons Compromised . | . . Overloaded Fab Kills . | . . Fab Network Shutdowns . | . . Hacking | -11 -10 --------- Run | Scr Mat Machines Accessed 4 | . 4 Terminals 3 | . 3 Fabricators . | . . Repair Stations . | . . Recycling Units 1 | . 1 Scanalyzers . | . . Garrison Access . | . . Total Hacks 8 | . 8 Successful 5 | . 5 Failed 3 | . 3 Catastrophic . | . . Database Lockouts . | . . Manual . | . . Terminals 5 | . 5 Fabricators . | . . Repair Stations . | . . Recycling Units 3 | . 3 Scanalyzers . | . . Garrison Access . | . . Terminal Hacks 3 | . 3 Prototype ID Bank 1 | . 1 Locate Traps 1 | . 1 Dispatch Records 1 | . 1 Fabricator Hacks . | . . Repair Station Hacks . | . . Recycling Unit Hacks 2 | . 2 Report Inventory 2 | . 2 Scanalyzer . | . . Garrison Access Hacks . | . . Unauthorized Hacks . | . . Terminals . | . . Fabricators . | . . Repair Stations . | . . Recycling Units . | . . Scanalyzers . | . . Garrison Access . | . . Data Cores Recovered . | . . Used . | . . Hacking Detections 4 | . 4 Full Trace Events . | . . Feedback Events . | . . Feedback Blocked . | . . Robot Schematics Acquired . | . . Robots Built . | . . Matter . | . . Time . | . . Total Robot Build Rating . | . . Part Schematics Acquired . | . . Parts Built . | . . Matter . | . . Time . | . . Total Part Build Rating . | . . Parts Repaired . | . . Time . | . . Parts Recycled . | . . Recycled Matter . | . . Retrieved Matter . | . . Retrieved Components . | . . Parts Scanalyzed . | . . Part Schematics Acquired . | . . Parts Damaged . | . . Bothacking | -11 -10 ------------ Run | Scr Mat Used RIF Installer . | . . Robots Hacked . | . . Non-combat . | . . Combat . | . . Robot Hacks Applied . | . . Relay Couplers Released . | . . Robots Rewired . | . . Allies Hacked . | . . Hacks Repelled . | . . Allies | -11 -10 -------- Run | Scr Mat Total Allies . | . . Largest Group . | . . Highest-Rated Group . | . . Highest-Rated Ally . | . . Total Orders . | . . Ally Attacks . | . . Total Damage . | . . Kills . | . . Allies Corrupted . | . . Allies Melted . | . . Intel | -11 -10 ------- Run | Scr Mat Robot Analysis Total . | . . Derelict Logs Recovered . | . . Drone Launches . | . . Drone Recoveries . | . . Exploration | -11 -10 ------------- Run | Scr Mat Turns Passed 948 | 66 882 Spaces Moved 467 | 38 429 Core 1 | 1 . Treads 466 | 37 429 Legs . | . . Wheels . | . . Hover . | . . Flight . | . . Fastest Speed 50 | 50 160 Average Speed 159 | 157 160 Slowest Speed 160 | 160 160 Overloaded Moves . | . . Propulsion Burnouts . | . . Robots Hopped . | . . Cave-ins Triggered . | . . Exploration Rate (%) 26 | 4 49 Regions Visited 1 Branch Regions . Pre-discovered Areas . | . . Known Exits Taken . | . . Unknown Exits Taken 1 | 1 . Scrap Searched . | . . Spaces Dug . | . . Terrain Destroyed . | . . Melee . | . . Projectile . | . . AOE . | . . Terrain Rammed . | . . Walls Destroyed . | . . Machines Disabled . | . . Actions | -11 -10 --------- Run | Scr Mat Total 590 | 42 548 Wait 57 | . 57 Move 466 | 37 429 Hop . | . . Pick Up 8 | . 8 Fast Attach 8 | 5 3 Attach 2 | . 2 Detach . | . . Swap 3 | . 3 Drop 4 | . 4 Fire 42 | . 42 Melee . | . . Ram . | . . Kick . | . . Crush . | . . Escape Stasis . | . . Rewire . | . . Trap . | . . Miscellaneous . | . . Route ------- -11/Scrapyard -10/Materials (discovered 2 exits: [*Mat x2]) History --------- Turn | Location | Event 24 | -11/Scrapyard | Discovered new exit (range 16) 67 | -11/Scrapyard | Entered Materials 195 | -10/Materials | Discovered new exit (range 14) 310 | -10/Materials | Build established: Mutant 425 | -10/Materials | Discovered new exit (range 11) 882 | -10/Materials | Core integrity fell below 50% 910 | -10/Materials | Lost 5 parts (1p4w) 930 | -10/Materials | Core integrity fell below 20% 949 | -10/Materials | Destroyed by G-34 Mercenary with Small Laser Last Messages --------------- 00814_ R-06 Scavenger inserts Heat Sink into recycling unit. 00815_ Recycling unit begins recycling process. 00816_ Recycling unit begins matter transfer process. 00817_ R-06 Scavenger inserts Particle Gun into recycling unit. 00851_ Beam Rifle destroyed. 00859_ U-05 Engineer destroyed. 00862_ Beam Rifle destroyed. 00865_ G-47 Trooper heat spikes uncontrollably. 00865_ G-47 Trooper overheating. 00867_ G-47 Trooper heat damages Aluminum Leg, Lgt. Nuclear Core. 00870_ G-47 Trooper overheating. 00870_ Ion Engine destroyed. 00872_ G-47 Trooper heat short circuits Aluminum Leg. 00872_ R-06 Scavenger collects Structural Scanner. 00875_ G-47 Trooper overheating. 00876_ Destroyed Broken Aluminum Leg. 00876_ G-47 Trooper overheating. 00878_ Aluminum Leg melted. 00878_ G-47 Trooper destroyed. 00879_ Beam Rifle destroyed. Map ----- +----------------------------------------------------+ | | | | | | | | | ????###################????????????? | | ????# #[ ! #???????????? | | ????# """ # #???????????? | | ????# "R" # #???????????? | | ????# """ " " # """ #???????????? | | ????# """ # """"" #???????????? | | ????# """ # """"" #???????????? | | ????# # """"" #???????????? | | ????# # """ #???????????? | | ????########+## #????????#### | | ?????# ####+############## | | ?????# | | ?????# | | ?????# ##+################ | | ?????# u## #????????????# | | ?????# ## #????????????# | | ?????# " ## [[#????????????# | | ?????# T u ## [[#????????????# | | ?##### " ## ######???????# | | ?# ######## ######### | | ?# [ # # =!!!%!!* | | ?#[[ @## ! # #######!= | | ?#[[ ## + # +! | | ?#! ## """ # # " ^# | | ?#!! # """ # # T # | | ?##### + """ # # " # | | ?????###### ######## # !# | | ??????????# #??????# ####### | | ??????????# #??????# #?????###+## | | ??????????# #??????# #??????????? | | ??????????# g#??????# #??????????? | | ??????????# #??????# #??????????? | | ?????????## #####??# % #??????????? | | ?????????# #??# %#??????????? | | ?????????# < #??# !#??????????? | | ?????????# #??# #??????????? | | ############## #??# #??????????? | | # # #??# #??????????? | | # # #??# #??????????? | | # + #### #??????????? | | # " """"" # #??????????? | | # """"""""" # #??????????? | | # """ """ # #??????????? | | ############## ####+####??????????? | | ?????????????# ## % #??????????? | | ?????????????# ## % "" #??????????? | +----------------------------------------------------+ Best States ------------- Heat Dissipation 25 Energy Generation 10 Energy Capacity 250 Matter Stores 300 Matter Capacity 300 Sight Range 16 Terrain Scan Density 10 Evasion (%) 40 Targeting Accuracy 5 Recoil Reduction 2 Item Schematics ----------------- None Robot Schematics ------------------ None Fabricated ------------ Nothing Alien Tech Used ----------------- None Achievements -------------- None Challenges ------------ None Game ------ Seed MiningLightExtractor Manual? 0 Play Time 00:13:11 Cumulative 12.6 hours Start 2020.09.17 @ 12:17:39 End 2020.09.17 @ 12:28:18 Sessions 1 Manual Loads 0 Difficulty Rogue Special Mode None Game No. 14 Rogue 14 Adventurer 0 Explorer 0 Win Type - Total 0 Types 0/0/0/0/0/0/0/0/0 Lore% 14 Gallery% 8 Achievement% 12 Wizard Run 0 Options --------- ASCII 0 Keyboard 0 Movement Mouse Keybinds 0 Fullscreen 1 Font 32/Smallcaps Map View 76x50 Tactical HUD 1 Map Filters NONE Filters NONE Steam 1 RUN: 3c489384-8d4a-42f9-9624-bbfb164e0739